[Event "Open Mancomunitat de la Ribera Alta (Sumacàrcer)"]
[Site "Sumacàrcer, Spain"]
[Date "2018.11.18"]
[Round "6.3"]
[White "Kovacevic, Slobodan"]
[Black "Gavarrete, Nahun"]
[Result "1-0"]
[TimeControl "5m+3s"]
[WhiteElo "2455"]
[BlackElo "2200"]

1. d4 c5 2. d5 {[%clk 00:05:05]} d6 {[%clk 00:05:02]} 3. Nc3 {[%clk 00:05:06]}
{[%emt 00:24:32]} Nf6 {[%clk 00:05:09]} 4. e4 {[%clk 00:05:08]} {[%emt
00:00:04]} g6 {[%clk 00:05:11]} 5. Nf3 {[%clk 00:05:10]} Bg7 {[%clk 00:05:13]}
6. Bb5+ {[%clk 00:05:12]} Nfd7 {[%clk 00:05:11]} {[%emt 00:00:03]} 7. a4 {[%clk
00:05:14]} O-O {[%clk 00:05:12]} {[%emt 00:00:04]} 8. O-O {[%clk 00:05:15]} Na6
{[%clk 00:05:06]} {[%emt 00:00:05]} 9. Re1 {[%clk 00:05:17]} {[%emt 00:00:09]}
Nc7 {[%clk 00:05:08]} {[%emt 00:00:11]} 10. Bf1 {[%clk 00:05:18]} a6 {[%clk
00:05:10]} 11. a5 {[%clk 00:05:18]} Rb8 12. Bf4 {[%emt 00:00:08]} b5 {[%clk
00:05:07]} {[%emt 00:00:06]} 13. axb6 {[%clk 00:05:12]} {[%emt 00:00:06]} Rxb6
{[%clk 00:05:04]} 14. Ra2 {[%clk 00:05:09]} {[%emt 00:00:07]} Bb7 {[%clk
00:05:05]} 15. Na4 {[%clk 00:05:02]} {[%emt 00:00:09]} Rb5 {[%clk 00:04:34]}
{[%emt 00:00:31]} 16. c4 {[%emt 00:00:42]} Rb4 {[%clk 00:04:19]} {[%emt
00:00:10]} 17. Bd2 {[%clk 00:04:33]} Re8 {[%clk 00:03:49]} {[%emt 00:00:38]} 18.
Bxb4 {[%clk 00:04:28]} cxb4 {[%clk 00:03:51]} {[%emt 00:00:21]} 19. Qd2 {[%clk
00:04:14]} a5 {[%clk 00:03:53]} {[%emt 00:00:11]} 20. b3 {[%clk 00:04:08]} Na6
{[%clk 00:03:55]} {[%emt 00:00:04]} 21. Bd3 {[%clk 00:03:48]} Nac5 {[%clk
00:03:57]} {[%emt 00:00:51]} 22. Nxc5 {[%clk 00:03:49]} Nxc5 {[%clk 00:03:59]}
23. Bc2 {[%clk 00:03:51]} Bc3 {[%clk 00:04:00]} 24. Qd1 {[%clk 00:03:50]} Bxe1
{[%clk 00:04:02]} {[%emt 00:00:04]} 25. Qxe1 {[%clk 00:03:44]} e6 {[%clk
00:04:04]} 26. Qb1 {[%clk 00:02:50]} Qb6 {[%clk 00:03:38]} {[%emt 00:01:13]} 27.
Nd2 exd5 {[%clk 00:03:28]} 28. cxd5 {[%clk 00:02:43]} {[%emt 00:00:27]} Ba6
{[%clk 00:02:45]} {[%emt 00:00:23]} 29. Qa1 {[%clk 00:02:35]} {[%emt 00:00:10]}
Bd3 {[%clk 00:01:47]} {[%emt 00:01:04]} 30. Bxd3 {[%clk 00:02:26]} {[%emt
00:00:10]} Nxd3 {[%clk 00:01:49]} {[%emt 00:00:07]} 31. Nc4 {[%clk 00:02:28]}
Qc7 {[%clk 00:01:38]} {[%emt 00:00:14]} 32. Qd4 {[%clk 00:02:22]} {[%emt
00:00:06]} Nc5 {[%clk 00:01:38]} {[%emt 00:00:03]} 33. Nd2 {[%emt 00:00:18]}
Ra8 {[%clk 00:00:49]} {[%emt 00:00:44]} 34. g3 {[%clk 00:01:55]} {[%emt
00:00:41]} Ra7 {[%clk 00:00:47]} 35. Rc2 {[%emt 00:00:09]} a4 {[%clk 00:00:43]}
36. Qxb4 {[%clk 00:01:43]} Rb7 {[%clk 00:00:31]} {[%emt 00:00:15]} 37. Qc4
{[%clk 00:01:37]} {[%emt 00:00:36]} axb3 {[%clk 00:00:33]} 38. Nxb3 {[%clk
00:01:33]} {[%emt 00:00:03]} Qe7 {[%clk 00:00:06]} {[%emt 00:00:08]} 39. Nxc5
{[%clk 00:01:32]} {[%emt 00:00:33]} dxc5 {[%clk 00:00:07]} 40. f3 {[%clk
00:01:16]} {[%emt 00:00:03]} Rb1+ {[%clk 00:00:06]} 41. Kg2 {[%clk 00:01:18]}
Qa7 {[%clk 00:00:07]} {[%emt 00:00:03]} 42. Qxc5 Qa1 {[%clk 00:00:09]} {[%emt
00:00:03]} 43. Qc8+ {[%clk 00:01:15]} {[%emt 00:00:04]} Kg7 {[%clk 00:00:12]}
44. Qc3+ {[%clk 00:01:14]} {[%emt 00:00:06]} Qxc3 {[%clk 00:00:12]} 45. Rxc3
{[%clk 00:01:16]} {[%emt 00:00:04]} Rb2+ {[%clk 00:00:14]} 46. Kh3 {[%clk
00:01:17]} h5 {[%emt 00:00:12]} 47. Rd3 {[%clk 00:01:04]} {[%emt 00:00:05]} g5
{[%clk 00:00:05]} {[%emt 00:00:10]} 48. d6 {[%clk 00:01:03]} {[%emt 00:00:17]}
Kg6 {[%clk 00:00:06]} 49. d7 {[%clk 00:00:38]} {[%emt 00:00:18]} 1-0

[Event "Open Mancomunitat de la Ribera Alta (Sumacàrcer)"]
[Site "Sumacàrcer, Spain"]
[Date "2018.11.18"]
[Round "6.4"]
[White "Granero Roca, Antonio"]
[Black "Minguez Piquer, Joaquim"]
[Result "1-0"]
[TimeControl "5m+3s"]
[WhiteElo "2372"]
[BlackElo "1786"]

1. d4 {[%clk 00:05:04]} {[%emt 00:00:10]} d5 {[%clk 00:05:04]} {[%emt
00:00:19]} 2. c4 {[%clk 00:05:06]} e6 {[%clk 00:05:04]} 3. Nf3 {[%clk
00:05:08]} Nf6 {[%clk 00:05:05]} {[%emt 00:00:04]} 4. g3 {[%clk 00:05:09]} g6
{[%clk 00:04:58]} 5. Bg2 {[%clk 00:05:10]} Bg7 {[%clk 00:05:00]} 6. O-O {[%clk
00:05:10]} {[%emt 00:00:05]} O-O {[%clk 00:05:00]} 7. Nc3 {[%clk 00:05:12]} c6
{[%clk 00:04:45]} {[%emt 00:00:20]} 8. Bf4 {[%clk 00:05:08]} {[%emt 00:00:03]}
dxc4 {[%clk 00:04:25]} {[%emt 00:00:21]} 9. Ne5 {[%clk 00:05:04]} {[%emt
00:00:09]} Nbd7 {[%clk 00:04:02]} {[%emt 00:00:23]} 10. Nxc4 {[%clk 00:05:05]}
{[%emt 00:00:15]} Nb6 {[%clk 00:03:36]} {[%emt 00:00:20]} 11. Ne5 {[%clk
00:04:54]} {[%emt 00:00:11]} Nfd5 {[%clk 00:03:18]} {[%emt 00:00:34]} 12. Bd2
{[%clk 00:04:47]} {[%emt 00:00:04]} Bxe5 {[%clk 00:02:54]} {[%emt 00:00:19]} 13.
dxe5 {[%clk 00:04:49]} {[%emt 00:00:24]} Nc4 {[%clk 00:02:56]} 14. e4 {[%clk
00:04:33]} {[%emt 00:00:08]} Nxb2 {[%clk 00:02:31]} {[%emt 00:00:54]} 15. Qb3
{[%clk 00:04:14]} {[%emt 00:00:04]} Nxc3 {[%clk 00:02:20]} {[%emt 00:00:05]} 16.
Bxc3 {[%clk 00:04:15]} Nd3 {[%clk 00:01:56]} {[%emt 00:00:20]} 17. Rfd1 {[%clk
00:04:16]} {[%emt 00:00:36]} Kg7 {[%clk 00:01:16]} {[%emt 00:00:08]} 18. Qc4
{[%clk 00:04:08]} {[%emt 00:00:18]} 1-0

[Event "Open Mancomunitat de la Ribera Alta (Sumacàrcer)"]
[Site "Sumacàrcer, Spain"]
[Date "2018.11.18"]
[Round "6.5"]
[White "Galvan, Jesus"]
[Black "Serarols Mabras, Bernat"]
[Result "0-1"]
[TimeControl "5m+3s"]
[WhiteElo "2254"]
[BlackElo "2191"]

1. d4 {[%clk 00:05:05]} {[%emt 00:00:08]} Nf6 {[%clk 00:05:04]} 2. c4 {[%clk
00:05:07]} e6 {[%clk 00:05:06]} 3. Nc3 {[%clk 00:05:09]} Bb4 {[%clk 00:05:08]}
4. f3 {[%clk 00:05:11]} {[%emt 00:00:07]} d5 {[%clk 00:05:10]} 5. a3 {[%clk
00:05:14]} Be7 {[%clk 00:05:09]} 6. e4 {[%clk 00:05:16]} dxe4 {[%clk 00:05:10]}
{[%emt 00:00:10]} 7. fxe4 {[%clk 00:05:18]} e5 {[%clk 00:05:12]} 8. d5 {[%clk
00:05:20]} {[%emt 00:00:06]} Bc5 {[%clk 00:05:09]} 9. Nf3 {[%clk 00:05:12]}
{[%emt 00:00:11]} Bg4 {[%clk 00:05:10]} {[%emt 00:00:14]} 10. Bd3 {[%clk
00:05:08]} Nbd7 {[%clk 00:04:54]} {[%emt 00:00:09]} 11. h3 {[%clk 00:05:00]}
{[%emt 00:00:32]} Bxf3 {[%clk 00:04:55]} 12. Qxf3 {[%clk 00:05:01]} O-O {[%clk
00:04:54]} 13. Bd2 {[%clk 00:04:20]} {[%emt 00:00:32]} a5 {[%clk 00:04:54]}
{[%emt 00:00:10]} 14. g4 {[%clk 00:04:06]} {[%emt 00:00:08]} Ne8 {[%clk
00:04:57]} {[%emt 00:00:33]} 15. O-O-O {[%clk 00:04:08]} Nd6 {[%clk 00:04:52]}
{[%emt 00:00:07]} 16. Rdf1 {[%clk 00:03:52]} c6 {[%clk 00:04:50]} 17. g5 {[%clk
00:03:54]} Rc8 {[%clk 00:03:57]} {[%emt 00:00:52]} 18. Kb1 {[%clk 00:03:37]}
{[%emt 00:00:22]} cxd5 {[%clk 00:03:29]} {[%emt 00:00:52]} 19. Nxd5 {[%clk
00:03:32]} {[%emt 00:00:03]} Bd4 {[%clk 00:03:24]} 20. Qe2 {[%clk 00:03:04]}
{[%emt 00:00:43]} Nc5 {[%clk 00:03:14]} 21. Rc1 {[%clk 00:01:30]} {[%emt
00:02:07]} Nb3 {[%clk 00:02:30]} {[%emt 00:00:08]} 22. Rc2 {[%clk 00:01:32]} b5
{[%clk 00:01:11]} {[%emt 00:01:24]} 23. cxb5 {[%clk 00:01:08]} {[%emt
00:00:25]} Rxc2 {[%clk 00:01:12]} {[%emt 00:00:11]} 24. Bxc2 {[%clk 00:01:09]}
Nxd2+ {[%clk 00:01:13]} 25. Qxd2 {[%clk 00:01:10]} Nxb5 {[%clk 00:01:12]}
{[%emt 00:00:04]} 26. Ka2 {[%clk 00:00:48]} {[%emt 00:00:45]} Nd6 {[%clk
00:01:14]} {[%emt 00:00:03]} 27. Bb3 {[%clk 00:00:40]} a4 {[%clk 00:01:16]} 28.
Bc2 {[%clk 00:00:17]} {[%emt 00:00:13]} Bxb2 {[%clk 00:01:11]} {[%emt
00:00:16]} 29. Bd3 {[%clk 00:00:10]} {[%emt 00:00:06]} Bd4 {[%clk 00:01:10]}
{[%emt 00:00:04]} 30. Rb1 {[%clk 00:00:11]} {[%emt 00:00:03]} Kh8 {[%clk
00:01:07]} {[%emt 00:00:08]} 31. h4 {[%clk 00:00:13]} Qd7 {[%clk 00:00:48]}
{[%emt 00:00:20]} 32. h5 {[%clk 00:00:04]} {[%emt 00:00:08]} Rc8 {[%clk
00:00:47]} {[%emt 00:00:35]} 33. g6 {[%clk 00:00:06]} fxg6 {[%clk 00:00:49]} 34.
hxg6 {[%clk 00:00:08]} h6 {[%clk 00:00:51]} 35. Rh1 {[%clk 00:00:08]} {[%emt
00:00:03]} Qe6 {[%clk 00:00:18]} {[%emt 00:00:15]} 36. Rxh6+ {[%clk 00:00:07]}
Kg8 {[%clk 00:00:15]} {[%emt 00:00:10]} 37. Rh8+ {[%clk 00:05:03]} {[%emt
00:00:07]} Kxh8 {[%clk 00:05:03]} 0-1

[Event "Open Mancomunitat de la Ribera Alta (Sumacàrcer)"]
[Site "Sumacàrcer, Spain"]
[Date "2018.11.18"]
[Round "6.6"]
[White "Garcia Amoros, Pablo"]
[Black "Garcia Vasquez, Jhoel"]
[Result "0-1"]
[TimeControl "5m+3s"]
[WhiteElo "2088"]
[BlackElo "2298"]

1. e4 {[%clk 00:05:04]} {[%emt 00:00:03]} c5 {[%clk 00:05:04]} {[%emt
00:00:04]} 2. Nf3 {[%clk 00:05:06]} d6 {[%clk 00:05:03]} {[%emt 00:00:06]} 3.
Bb5+ {[%clk 00:05:01]} {[%emt 00:00:31]} Nc6 {[%clk 00:05:04]} 4. O-O {[%clk
00:04:57]} {[%emt 00:00:03]} g6 {[%clk 00:05:05]} 5. Qe2 {[%clk 00:04:50]} Bg7
{[%clk 00:05:06]} 6. h3 {[%clk 00:04:45]} {[%emt 00:00:03]} e5 {[%clk
00:05:02]} {[%emt 00:00:05]} 7. c3 {[%clk 00:04:44]} {[%emt 00:00:04]} Nge7
{[%emt 00:00:04]} 8. Rd1 {[%clk 00:04:42]} {[%emt 00:00:04]} a6 {[%clk
00:05:06]} 9. Ba4 {[%clk 00:04:38]} {[%emt 00:00:11]} b5 {[%clk 00:05:08]} 10.
Bc2 {[%clk 00:04:40]} Bb7 {[%clk 00:04:59]} {[%emt 00:00:07]} 11. a4 {[%clk
00:04:36]} {[%emt 00:00:14]} b4 {[%clk 00:04:30]} {[%emt 00:00:26]} 12. d3
{[%clk 00:04:03]} {[%emt 00:00:38]} O-O {[%clk 00:04:29]} {[%emt 00:00:05]} 13.
Nbd2 {[%clk 00:03:55]} {[%emt 00:00:07]} d5 {[%clk 00:03:52]} {[%emt 00:00:43]}
14. exd5 {[%clk 00:03:54]} {[%emt 00:00:04]} Nxd5 {[%clk 00:03:53]} {[%emt
00:00:03]} 15. Ne4 {[%clk 00:03:17]} {[%emt 00:00:35]} bxc3 {[%clk 00:03:18]}
{[%emt 00:00:41]} 16. Nxc5 {[%clk 00:03:15]} {[%emt 00:00:12]} Bc8 {[%clk
00:03:13]} {[%emt 00:00:04]} 17. Bb3 {[%clk 00:01:44]} {[%emt 00:01:28]} Rb8
{[%clk 00:02:56]} {[%emt 00:00:20]} 18. Rb1 {[%clk 00:00:36]} {[%emt 00:01:15]}
Qe7 {[%clk 00:01:16]} {[%emt 00:01:40]} 19. d4 {[%clk 00:00:15]} {[%emt
00:00:24]} exd4 {[%clk 00:01:10]} {[%emt 00:00:32]} 20. Qxe7 {[%clk 00:00:15]}
Ndxe7 {[%clk 00:01:10]} 21. bxc3 {[%emt 00:00:06]} Bf5 0-1

[Event "Open Mancomunitat de la Ribera Alta (Sumacàrcer)"]
[Site "Sumacàrcer, Spain"]
[Date "2018.11.18"]
[Round "6.7"]
[White "Montalban Galvez, Antoni"]
[Black "Barbero Verdu, Francisco"]
[Result "1-0"]
[TimeControl "5m+3s"]
[WhiteElo "2172"]
[BlackElo "2043"]

1. c4 {[%clk 00:05:04]} {[%emt 00:00:06]} e5 {[%clk 00:05:05]} 2. Nc3 {[%clk
00:05:04]} {[%emt 00:00:08]} Nc6 {[%clk 00:05:08]} 3. e3 {[%clk 00:05:00]}
{[%emt 00:00:04]} g6 {[%clk 00:05:10]} 4. d4 {[%clk 00:04:49]} {[%emt
00:00:12]} exd4 {[%clk 00:05:12]} 5. exd4 {[%clk 00:04:50]} {[%emt 00:00:09]}
Bg7 {[%clk 00:05:14]} 6. d5 {[%clk 00:04:46]} Nb8 {[%clk 00:05:16]} 7. Nf3
{[%clk 00:04:40]} {[%emt 00:00:14]} d6 {[%clk 00:05:18]} 8. h3 {[%clk
00:04:32]} {[%emt 00:00:08]} Nf6 {[%clk 00:05:18]} {[%emt 00:00:10]} 9. Be2
{[%clk 00:04:19]} {[%emt 00:00:09]} O-O {[%clk 00:05:19]} {[%emt 00:00:05]} 10.
O-O {[%clk 00:04:20]} h6 {[%clk 00:05:21]} {[%emt 00:00:04]} 11. Be3 {[%clk
00:04:00]} {[%emt 00:00:20]} Nbd7 {[%clk 00:05:20]} {[%emt 00:00:06]} 12. Bd4
{[%clk 00:04:00]} {[%emt 00:00:05]} Re8 {[%clk 00:05:20]} 13. Qd2 {[%clk
00:03:47]} {[%emt 00:00:14]} Ne5 {[%clk 00:05:21]} {[%emt 00:00:09]} 14. Nxe5
{[%clk 00:03:43]} {[%emt 00:00:09]} dxe5 {[%clk 00:05:22]} 15. Be3 {[%clk
00:03:44]} Kh7 {[%clk 00:05:18]} {[%emt 00:00:05]} 16. Rad1 {[%clk 00:03:25]}
{[%emt 00:00:22]} a6 {[%clk 00:05:20]} 17. c5 {[%clk 00:03:18]} {[%emt
00:00:07]} Qe7 {[%clk 00:05:09]} {[%emt 00:00:15]} 18. Bc4 {[%clk 00:03:02]}
{[%emt 00:00:20]} Rd8 {[%clk 00:04:55]} {[%emt 00:00:17]} 19. Rfe1 {[%clk
00:02:33]} {[%emt 00:00:35]} Qf8 {[%clk 00:04:41]} {[%emt 00:00:14]} 20. b4
{[%clk 00:02:29]} {[%emt 00:00:06]} Bd7 {[%clk 00:04:37]} {[%emt 00:00:07]} 21.
f4 {[%clk 00:02:21]} {[%emt 00:00:10]} Nh5 {[%clk 00:04:26]} {[%emt 00:00:14]}
22. fxe5 {[%clk 00:02:01]} {[%emt 00:00:24]} Bxe5 {[%clk 00:04:28]} 23. Bd4
{[%clk 00:01:59]} {[%emt 00:00:11]} Bf4 {[%clk 00:04:10]} {[%emt 00:00:16]} 24.
Be3 {[%clk 00:01:54]} {[%emt 00:00:08]} Be5 {[%clk 00:04:11]} {[%emt 00:00:06]}
25. Bd4 {[%clk 00:01:13]} {[%emt 00:00:41]} Bf4 {[%clk 00:04:07]} {[%emt
00:00:06]} 26. Qd3 {[%clk 00:00:53]} {[%emt 00:00:22]} Bf5 {[%clk 00:04:09]} 27.
Qf3 {[%clk 00:00:55]} {[%emt 00:00:06]} Bg3 {[%clk 00:03:48]} {[%emt 00:00:22]}
28. Re2 {[%clk 00:00:38]} {[%emt 00:00:20]} Re8 {[%clk 00:03:48]} {[%emt
00:00:05]} 29. Rf1 {[%clk 00:00:27]} {[%emt 00:00:11]} Rxe2 {[%clk 00:03:50]}
{[%emt 00:00:05]} 30. Nxe2 {[%clk 00:00:29]} b5 {[%clk 00:03:29]} {[%emt
00:00:22]} 31. Bb3 {[%clk 00:00:27]} {[%emt 00:00:06]} a5 {[%clk 00:00:46]}
{[%emt 00:02:45]} 32. Nxg3 {[%clk 00:00:27]} {[%emt 00:00:05]} Nxg3 {[%clk
00:00:48]} 33. Qxg3 {[%clk 00:00:29]} a4 {[%clk 00:00:50]} {[%emt 00:00:05]} 34.
Bd1 {[%clk 00:00:28]} {[%emt 00:00:08]} Re8 {[%clk 00:00:49]} 35. Bg4 {[%clk
00:00:26]} {[%emt 00:00:05]} Be4 {[%clk 00:00:47]} 36. Qxc7 {[%clk 00:00:27]}
{[%emt 00:00:09]} Re7 {[%clk 00:00:49]} 37. Qd6 {[%clk 00:00:23]} {[%emt
00:00:04]} f5 {[%clk 00:00:51]} 38. Bf6 {[%clk 00:00:19]} {[%emt 00:00:10]} Rf7
{[%clk 00:00:49]} {[%emt 00:00:04]} 39. Qxf8 {[%clk 00:00:18]} {[%emt
00:00:06]} Rxf8 {[%clk 00:00:51]} 40. Bc3 {[%clk 00:00:14]} {[%emt 00:00:05]}
Bxd5 {[%clk 00:00:52]} {[%emt 00:00:04]} 41. Bf3 {[%clk 00:00:16]} Bc4 {[%clk
00:00:54]} 42. Re1 {[%clk 00:00:17]} g5 {[%clk 00:00:55]} {[%emt 00:00:05]} 43.
Re7+ {[%clk 00:00:18]} Kg6 {[%clk 00:00:57]} 44. Rg7# {[%clk 00:00:20]} {[%emt
00:00:04]} 1-0

[Event "Open Mancomunitat de la Ribera Alta (Sumacàrcer)"]
[Site "Sumacàrcer, Spain"]
[Date "2018.11.18"]
[Round "7.1"]
[White "Torres Sanchez, Jose"]
[Black "Toledano Llinares, Juan A."]
[Result "0-1"]
[TimeControl "5m+3s"]
[WhiteElo "2183"]
[BlackElo "2258"]

1. e4 {[%clk 00:05:03]} {[%emt 00:06:09]} c5 {[%clk 00:05:03]} 2. Nf3 {[%clk
00:05:03]} Nc6 {[%clk 00:05:03]} 3. Bb5 {[%clk 00:05:03]} {[%emt 00:00:22]} g6
{[%clk 00:05:03]} 4. O-O {[%clk 00:05:03]} Bg7 {[%clk 00:05:03]} 5. Re1 {[%clk
00:05:03]} Nd4 {[%clk 00:05:03]} {[%emt 00:00:06]} 6. Bc4 {[%clk 00:05:03]}
{[%emt 00:00:22]} d6 {[%clk 00:05:03]} 7. c3 {[%clk 00:05:03]} Nxf3+ {[%clk
00:05:03]} {[%emt 00:00:09]} 8. Qxf3 {[%clk 00:05:03]} Nf6 {[%clk 00:05:03]}
{[%emt 00:00:14]} 9. d4 {[%clk 00:05:03]} {[%emt 00:00:09]} O-O {[%clk
00:04:47]} {[%emt 00:01:00]} 10. e5 {[%clk 00:04:58]} dxe5 {[%clk 00:04:32]}
{[%emt 00:00:04]} 11. dxe5 {[%clk 00:04:59]} {[%emt 00:00:04]} Ne8 {[%clk
00:04:34]} 12. Bf4 {[%clk 00:04:45]} {[%emt 00:00:16]} Nc7 {[%clk 00:04:33]}
{[%emt 00:00:04]} 13. Nd2 {[%clk 00:04:43]} {[%emt 00:00:06]} Be6 {[%clk
00:03:58]} {[%emt 00:00:34]} 14. Rad1 {[%clk 00:04:41]} {[%emt 00:00:37]} Qc8
{[%clk 00:03:51]} 15. Bg5 {[%clk 00:04:31]} Re8 {[%clk 00:03:46]} {[%emt
00:00:04]} 16. Qg3 {[%clk 00:04:02]} {[%emt 00:00:30]} b5 {[%clk 00:03:44]}
{[%emt 00:00:08]} 17. Bd3 {[%clk 00:03:52]} {[%emt 00:00:11]} Qb7 {[%clk
00:02:54]} {[%emt 00:00:52]} 18. Qh4 {[%clk 00:03:47]} {[%emt 00:00:10]} Bf8
{[%clk 00:02:18]} {[%emt 00:00:38]} 19. Ne4 {[%clk 00:03:37]} {[%emt 00:00:10]}
c4 {[%clk 00:01:59]} {[%emt 00:00:22]} 20. Bc2 {[%clk 00:03:32]} {[%emt
00:00:32]} Bd5 {[%clk 00:01:58]} {[%emt 00:00:03]} 21. Bh6 {[%clk 00:02:19]}
{[%emt 00:00:54]} Ne6 {[%clk 00:01:59]} {[%emt 00:00:10]} 22. Bxf8 {[%clk
00:02:17]} {[%emt 00:00:04]} Nxf8 {[%clk 00:01:59]} 23. Qh6 {[%clk 00:01:47]}
{[%emt 00:00:28]} Qc6 {[%clk 00:01:32]} {[%emt 00:00:36]} 24. Re3 {[%clk
00:01:42]} {[%emt 00:00:05]} Rad8 {[%clk 00:01:31]} {[%emt 00:00:19]} 25. Rd4
{[%clk 00:01:25]} {[%emt 00:00:09]} Bxe4 {[%clk 00:00:52]} {[%emt 00:00:35]} 26.
Bxe4 {[%clk 00:01:26]} {[%emt 00:00:30]} Qe6 {[%clk 00:00:53]} 27. f4 {[%clk
00:01:21]} Rxd4 {[%clk 00:00:44]} 28. cxd4 {[%clk 00:01:23]} Rd8 {[%clk
00:00:47]} 29. d5 {[%emt 00:00:15]} Qb6 30. Kf2 {[%clk 00:01:04]} {[%emt
00:00:09]} Qd4 {[%clk 00:00:50]} {[%emt 00:00:03]} 31. Kf3 {[%clk 00:00:56]}
{[%emt 00:00:07]} Qxb2 {[%clk 00:00:48]} {[%emt 00:00:10]} 32. f5 Qxe5 33. fxg6
{[%clk 00:00:56]} Qf6+ {[%clk 00:00:49]} 34. Ke2 {[%clk 00:00:52]} {[%emt
00:00:03]} Nxg6 {[%clk 00:00:47]} {[%emt 00:00:05]} 35. h4 {[%clk 00:00:48]}
{[%emt 00:00:10]} Nf4+ {[%emt 00:00:11]} 0-1

[Event "Open Mancomunitat de la Ribera Alta (Sumacàrcer)"]
[Site "Sumacàrcer, Spain"]
[Date "2018.11.18"]
[Round "7.2"]
[White "Serarols Mabras, Bernat"]
[Black "Kovacevic, Slobodan"]
[Result "1-0"]
[TimeControl "5m+3s"]
[WhiteElo "2191"]
[BlackElo "2455"]

1. d4 {[%clk 00:05:04]} {[%emt 00:00:23]} Nf6 {[%clk 00:05:05]} 2. c4 e6 3. Nc3
{[%clk 00:05:05]} c5 {[%clk 00:05:10]} 4. d5 {[%clk 00:05:07]} exd5 {[%clk
00:05:12]} 5. cxd5 {[%clk 00:05:08]} d6 {[%clk 00:05:14]} 6. e4 {[%clk
00:05:10]} g6 {[%clk 00:05:16]} 7. Bd3 {[%clk 00:05:11]} Bg7 {[%clk 00:05:18]}
8. h3 {[%clk 00:05:12]} a6 {[%clk 00:05:19]} 9. a4 {[%clk 00:05:13]} Nbd7
{[%clk 00:05:20]} 10. Nf3 {[%clk 00:05:13]} {[%emt 00:00:06]} Nh5 {[%clk
00:05:20]} 11. Bg5 {[%clk 00:05:10]} Bf6 {[%clk 00:05:22]} 12. Be3 {[%clk
00:04:57]} O-O {[%clk 00:05:20]} {[%emt 00:00:03]} 13. O-O {[%clk 00:04:57]}
{[%emt 00:00:05]} Rb8 {[%clk 00:05:19]} {[%emt 00:00:03]} 14. Re1 {[%clk
00:04:56]} {[%emt 00:00:03]} Qe7 {[%clk 00:05:15]} {[%emt 00:00:07]} 15. Nd2
{[%clk 00:04:32]} {[%emt 00:00:51]} Bg5 {[%clk 00:04:46]} {[%emt 00:00:08]} 16.
Bf1 {[%clk 00:03:36]} {[%emt 00:00:56]} Re8 {[%clk 00:03:54]} {[%emt 00:00:56]}
17. a5 {[%clk 00:03:22]} {[%emt 00:00:17]} Bf6 {[%clk 00:02:28]} {[%emt
00:01:30]} 18. Be2 {[%clk 00:03:01]} {[%emt 00:00:23]} Ng7 {[%clk 00:02:27]}
{[%emt 00:00:31]} 19. Nc4 {[%clk 00:02:23]} {[%emt 00:00:13]} Ne5 {[%clk
00:02:28]} {[%emt 00:00:09]} 20. Nb6 {[%clk 00:02:21]} {[%emt 00:00:07]} g5
{[%clk 00:02:29]} 21. Rb1 {[%clk 00:02:12]} {[%emt 00:00:07]} Bd7 {[%clk
00:02:19]} {[%emt 00:00:14]} 22. Qc2 {[%clk 00:02:02]} {[%emt 00:00:09]} Ng6
{[%clk 00:02:07]} {[%emt 00:00:35]} 23. Bf1 {[%clk 00:01:22]} {[%emt 00:00:24]}
Ne5 {[%clk 00:01:35]} {[%emt 00:00:38]} 24. Be2 {[%clk 00:01:12]} {[%emt
00:00:11]} h5 {[%clk 00:01:33]} {[%emt 00:00:06]} 25. Nxd7 {[%clk 00:00:48]}
{[%emt 00:00:26]} Qxd7 {[%clk 00:01:28]} {[%emt 00:00:11]} 26. Na4 {[%clk
00:00:40]} {[%emt 00:00:08]} Qe7 {[%clk 00:01:06]} {[%emt 00:00:37]} 27. Nb6
{[%clk 00:00:41]} g4 {[%clk 00:01:00]} {[%emt 00:00:03]} 28. hxg4 {[%clk
00:00:32]} {[%emt 00:00:07]} Nxg4 {[%clk 00:00:49]} {[%emt 00:00:14]} 29. Bxg4
{[%clk 00:00:33]} {[%emt 00:00:42]} hxg4 {[%clk 00:00:51]} 30. Bf4 {[%clk
00:00:30]} Nh5 {[%clk 00:00:47]} 31. Bd2 {[%clk 00:00:15]} g3 {[%clk 00:00:47]}
{[%emt 00:00:09]} 32. Bc3 {[%clk 00:00:14]} gxf2+ {[%clk 00:00:46]} {[%emt
00:00:07]} 33. Kxf2 {[%clk 00:00:17]} Bh4+ {[%clk 00:00:47]} 34. Kg1 {[%clk
00:00:19]} Bg3 {[%clk 00:00:39]} {[%emt 00:00:09]} 35. Re3 {[%clk 00:00:15]}
{[%emt 00:00:06]} Qh4 {[%clk 00:00:41]} {[%emt 00:00:13]} 36. Rxg3+ {[%clk
00:00:15]} {[%emt 00:00:04]} Nxg3 37. e5 {[%clk 00:00:13]} dxe5 {[%clk
00:00:36]} {[%emt 00:00:03]} 38. d6 {[%clk 00:00:16]} Rbd8 {[%clk 00:00:34]}
{[%emt 00:00:07]} 39. d7 {[%clk 00:00:18]} {[%emt 00:00:09]} Re6 {[%clk
00:00:34]} 40. Be1 {[%clk 00:00:10]} {[%emt 00:00:11]} Qh1+ {[%clk 00:00:17]}
{[%emt 00:00:37]} 41. Kf2 {[%clk 00:00:12]} Qh4 {[%emt 00:00:04]} 42. Kg1
{[%clk 00:00:09]} {[%emt 00:00:08]} Qh1+ 43. Kf2 Qf1+ 44. Kxg3 {[%clk
00:00:12]} Rg6+ {[%clk 00:00:10]} 45. Kh2 {[%clk 00:00:12]} {[%emt 00:00:04]}
Kg7 {[%clk 00:00:13]} 46. Bh4 {[%clk 00:00:12]} Qf4+ 47. g3 {[%clk 00:00:14]}
Qd4 {[%clk 00:00:14]} {[%emt 00:00:06]} 48. Rd1 {[%clk 00:00:14]} {[%emt
00:00:07]} Qb4 {[%clk 00:00:15]} 49. Bxd8 {[%clk 00:00:15]} Rh6+ {[%clk
00:00:17]} 50. Bh4 {[%clk 00:00:17]} {[%emt 00:00:03]} Rxh4+ {[%clk 00:00:19]}
51. gxh4 {[%clk 00:00:19]} Qf4+ {[%clk 00:00:21]} 52. Kh1 {[%clk 00:00:19]} Kh8
{[%clk 00:00:22]} {[%emt 00:00:03]} 53. d8=Q+ {[%clk 00:00:19]} Kg7 {[%clk
00:00:24]} {[%emt 00:00:08]} 54. Qg2+ {[%clk 00:00:18]} {[%emt 00:00:06]} Kh7
{[%clk 00:00:26]} {[%emt 00:00:38]} 55. Qdg8+ {[%clk 00:00:19]} 1-0